fUSD/lending_fUSD_20250623
["ID","MTS","AMOUNT","RATE_DAILY","PERIOD"]
[367147460,1750671051314,-193.07925657,0.00026159,3]
[367147462,1750671051323,-490.0,0.00026159,3]
[367147464,1750671051333,-3052.68,0.00026159,3]
[367147466,1750671051342,-498.89,0.00026159,3]
[367147468,1750671051351,-1243.35,0.00026159,3]
[367147470,1750671051360,-784.78,0.00026159,3]
[367147472,1750671051369,-1542.83,0.00026159,3]
[367147474,1750671051378,-1417.76,0.00026159,3]
[367147476,1750671051387,-1250.85,0.00026159,3]
[367147478,1750671051396,-3787.45,0.00026159,3]
[367147480,1750671051405,-522.67,0.00026159,3]
[367147482,1750671051415,-4663.0,0.00026159,3]
[367147484,1750671051425,-808.5,0.00026159,3]
[367147486,1750671051434,-725.43,0.00026159,3]
[367147488,1750671051445,-490.0,0.00026159,3]
[367147490,1750671051454,-1024.92,0.00026159,3]
[367147492,1750671051463,-1023.63,0.00026159,3]
[367147494,1750671051472,-1229.41,0.00026159,3]
[367147496,1750671051481,-1101.11,0.00026159,3]
[367147498,1750671051490,-238.52912342,0.00026176,14]
[367147500,1750671051499,-1093.58,0.00026219,3]
[367147501,1750671051508,-490.0,0.00026219,3]
[367147503,1750671051517,-1145.93,0.00026219,3]
[367147505,1750671051526,-592.4,0.00026219,3]
[367147507,1750671051535,-791.05,0.00026219,3]
[367147509,1750671051545,-2299.43,0.00026219,3]
[367147511,1750671051554,-876.96,0.00026219,3]
[367147513,1750671051563,-1136.69,0.00026219,3]
[367147515,1750671051572,-1124.98,0.00026219,3]
[367147517,1750671051581,-490.0,0.00026219,3]
[367147519,1750671051590,-1139.62,0.00026219,3]
[367147521,1750671051599,-1299.08,0.00026219,3]
[367147523,1750671051608,-23598.15,0.00026219,3]
[367147525,1750671051618,-3594.64,0.00026219,3]
[367147527,1750671051627,-1672.9,0.00026219,3]
[367147529,1750671051636,-2305.21,0.00026219,3]
[367147531,1750671051645,-1263.38,0.00026219,3]
[367147533,1750671051654,-2485.33,0.00026219,3]
[367147535,1750671051662,-5354.1,0.00026219,3]
[367147536,1750671051672,-981.37,0.00026219,3]
[367147538,1750671051681,-1385.66952,0.00026254,8]
[367147540,1750671051690,-223.0315306,0.00026275,2]
[367147542,1750671051699,-718.02,0.00026301,3]
[367147544,1750671051708,-1073.95,0.00026301,3]
[367147546,1750671051718,-276.67964539,0.00026332,2]
[367147548,1750671051727,-1996.0,0.00026332,2]
[367147550,1750671051736,-827.98,0.00026332,3]
[367147552,1750671051745,-585.75,0.00026332,3]
[367147554,1750671051754,-1216.51,0.00026332,3]
[367147556,1750671051764,-558.63,0.00026332,3]
[367147558,1750671051773,-490.0,0.00026332,3]
[367147560,1750671051782,-802.27,0.00026332,2]
[367147561,1750671051791,-490.0,0.00026332,3]
[367147563,1750671051800,-490.0,0.00026333,3]
[367147565,1750671051810,-490.0,0.00026333,3]
[367147567,1750671051820,-490.93,0.00026333,3]
[367147569,1750671051829,-707.79,0.00026333,3]
[367147571,1750671051839,-1604.37,0.00026333,3]
[367147573,1750671051848,-1142.47,0.00026333,3]
[367147574,1750671051857,-490.0,0.00026333,3]
[367147575,1750671051867,-1126.87,0.00026333,3]
[367147576,1750671051876,-557.12,0.00026333,3]
[367147577,1750671051886,-1298.56,0.00026333,3]
[367147578,1750671051895,-547.26,0.00026333,3]
[367147579,1750671051904,-509.46,0.00026333,3]
[367147580,1750671051913,-490.0,0.00026333,3]
[367147581,1750671051922,-1345.74,0.00026333,3]
[367147582,1750671051931,-1643.04,0.00026333,3]
[367147583,1750671051941,-490.0,0.00026333,3]
[367147584,1750671051950,-830.36,0.00026333,3]
[367147585,1750671051959,-525.41,0.00026333,3]
[367147586,1750671051968,-1068.15,0.00026333,3]
[367147587,1750671051976,-690.72,0.00026333,3]
[367147588,1750671051986,-1225.6,0.00026333,3]
[367147589,1750671051995,-1239.87,0.00026333,3]
[367147590,1750671052004,-1334.29,0.00026333,3]
[367147591,1750671052013,-1174.6,0.00026333,3]
[367147592,1750671052023,-2305.072983,0.00026333,3]
[367147594,1750671052032,-1213.260132,0.00026333,3]
[367147596,1750671052042,-1035.95,0.00026333,3]
[367147598,1750671052051,-490.0,0.00026333,3]
[367147599,1750671052060,-490.0,0.00026333,3]
[367147601,1750671052069,-1440.75,0.00026333,3]
[367147603,1750671052079,-2027.51,0.00026333,3]
[367147605,1750671052088,-794.33,0.00026333,3]
[367147607,1750671052097,-1437.79,0.00026333,3]
[367147609,1750671052106,-4833.380964,0.00026333,3]
[367147611,1750671052115,-614.15,0.00026333,3]
[367147613,1750671052126,-1340.2,0.00026333,3]
[367147615,1750671052135,-490.0,0.00026333,3]
[367147617,1750671052144,-490.0,0.00026333,3]
[367147619,1750671052154,-981.2,0.00026333,3]
[367147621,1750671052164,-601.64,0.00026333,3]
[367147623,1750671052174,-151.476984,0.00026333,3]
[367147625,1750671052184,-747.47,0.00026333,3]
[367147627,1750671052194,-2568.16,0.00026333,3]
[367147629,1750671052204,-1437.45,0.00026333,3]
[367147631,1750671052213,-1019.22,0.00026333,3]
[367147633,1750671052223,-1567.19,0.00026333,3]
[367147635,1750671052232,-1254.72,0.00026333,3]
[367147637,1750671052241,-1423.33,0.00026333,3]
[367147639,1750671052251,-10874.26,0.00026333,3]
[367147641,1750671052261,-1840.02,0.00026333,3]
[367147644,1750671052271,-613.75,0.00026333,3]
[367147646,1750671052281,-490.0,0.00026333,3]
[367147648,1750671052291,-2981.49,0.00026333,3]
[367147649,1750671052300,-1421.03,0.00026333,3]
[367147651,1750671052309,-490.0,0.00026333,3]
[367147653,1750671052319,-1615.12,0.00026333,3]
[367147655,1750671052329,-2199.74,0.00026333,3]
[367147657,1750671052338,-1367.19,0.00026333,3]
[367147659,1750671052347,-490.0,0.00026333,3]
[367147661,1750671052357,-873.9,0.00026333,3]
[367147663,1750671052366,-1277.01,0.00026333,3]
[367147666,1750671052376,-736.22,0.00026333,3]
[367147667,1750671052385,-1232.55,0.00026333,3]
[367147670,1750671052395,-2264.65,0.00026333,3]
[367147672,1750671052405,-798.31,0.00026333,3]
[367147673,1750671052414,-1460.83,0.00026333,3]
[367147676,1750671052424,-1230.43,0.00026333,3]
[367147678,1750671052433,-3458.74,0.00026333,3]
[367147679,1750671052443,-3322.15,0.00026333,3]
[367147681,1750671052452,-1258.34,0.00026333,3]
[367147684,1750671052462,-542.15,0.00026333,3]
[367147685,1750671052471,-1319.46,0.00026333,3]
[367147687,1750671052481,-1266.38,0.00026333,3]
[367147689,1750671052491,-4577.7,0.00026333,3]
[367147692,1750671052501,-490.0,0.00026333,3]
[367147694,1750671052512,-770.46,0.00026333,3]
[367147696,1750671052522,-1409.81,0.00026333,3]
[367147698,1750671052532,-1362.36,0.00026333,3]
[367147700,1750671052542,-8287.4,0.00026333,3]
[367147702,1750671052551,-861.06,0.00026333,3]
[367147704,1750671052561,-968.22,0.00026333,3]
[367147706,1750671052571,-490.0,0.00026333,3]
[367147708,1750671052580,-562.9,0.00026333,3]
[367147710,1750671052589,-722.97,0.00026333,3]
[367147712,1750671052599,-1605.74,0.00026333,3]
[367147714,1750671052609,-1832.31,0.00026333,3]
[367147716,1750671052618,-1229.9,0.00026333,3]
[367147718,1750671052629,-490.0,0.00026333,3]
[367147720,1750671052638,-1210.95,0.00026333,3]
[367147722,1750671052648,-1299.1,0.00026333,3]
[367147724,1750671052658,-1087.46,0.00026333,3]
[367147726,1750671052667,-1286.14,0.00026333,3]
[367147728,1750671052677,-490.0,0.00026333,3]
[367147730,1750671052687,-1605.88,0.00026333,3]
[367147732,1750671052697,-3821.2,0.00026333,3]
[367147734,1750671052707,-752.18,0.00026333,3]
[367147736,1750671052716,-490.0,0.00026333,3]
[367147738,1750671052725,-6122.59,0.00026333,3]
[367147740,1750671052735,-1424.95,0.00026333,3]
[367147742,1750671052745,-957.37,0.00026333,3]
[367147744,1750671052755,-1267.93,0.00026333,3]
[367147746,1750671052764,-936.09,0.00026333,3]
[367147748,1750671052773,-563.52,0.00026333,3]
[367147750,1750671052783,-408.86148516,0.00026333,3]
[367147752,1750671052794,-1430.22,0.00026333,3]
[367147754,1750671052803,-1062.05,0.00026333,3]
[367147756,1750671052813,-3287.6,0.00026333,3]
[367147758,1750671052823,-490.0,0.00026333,3]
[367147761,1750671052833,-4015.02,0.00026333,3]
[367147762,1750671052842,-2640.32,0.00026333,3]
[367147764,1750671052851,-5626.95,0.00026333,3]
[367147766,1750671052861,-1220.02999255,0.00026422,2]
[367147768,1750671052871,-1255.46,0.00026428,3]
[367147771,1750671052880,-2201.56,0.00026428,3]
[367147773,1750671052890,-1491.47,0.00026428,3]
[367147775,1750671052900,-2930.5,0.00026428,3]
[367147777,1750671052910,-1708.16,0.00026428,3]
[367147779,1750671052920,-5907.73,0.00026428,3]
[367147781,1750671052930,-1391.51,0.00026428,3]
[367147783,1750671052939,-575.02,0.00026428,3]
[367147785,1750671052949,-1084.95,0.00026428,3]
[367147787,1750671052959,-1300.29,0.00026428,3]
[367147789,1750671052968,-1536.61,0.00026428,3]
[367147791,1750671052978,-506.87400862,0.00026429,3]
[367147793,1750671052987,-152.0,0.00026429,3]
[367147795,1750671052997,-154.31656129,0.00026429,3]
[367147797,1750671053007,-166.0,0.00026429,3]
[367147799,1750671053016,-490.0,0.00026432,3]
[367147801,1750671053026,-1224.06,0.00026432,3]
[367147803,1750671053035,-645.55,0.00026432,3]
[367147805,1750671053046,-1390.19,0.00026432,3]
[367147807,1750671053055,-490.0,0.00026432,3]
[367147809,1750671053065,-1689.64,0.00026432,3]
[367147811,1750671053075,-1008.05,0.00026432,3]
[367147813,1750671053085,-11226.73,0.00026432,3]
[367147815,1750671053095,-490.0,0.00026432,3]
[367147817,1750671053104,-878.14,0.00026432,3]
[367147819,1750671053114,-1344.09,0.00026432,3]
[367147822,1750671053123,-964.93,0.00026432,3]
[367147824,1750671053134,-2314.74,0.00026432,3]
[367147826,1750671053143,-490.0,0.00026432,3]
[367147828,1750671053153,-1288.85,0.00026432,3]
[367147830,1750671053162,-621.6,0.00026432,3]
[367147832,1750671053171,-1102.76,0.00026432,3]
[367147834,1750671053181,-513.81,0.00026432,3]
[367147836,1750671053193,-583.03,0.00026432,3]
[367147838,1750671053203,-1946.34,0.00026432,3]
[367147840,1750671053213,-1685.02,0.00026432,3]
[367147842,1750671053222,-942.64,0.00026432,3]
[367147844,1750671053232,-555.39,0.00026432,3]
[367147846,1750671053242,-2108.72,0.00026432,3]
[367147848,1750671053252,-505.66,0.00026432,3]
[367147850,1750671053262,-1117.03,0.00026432,3]
[367147852,1750671053272,-597.77,0.00026432,3]
[367147854,1750671053282,-739.27,0.00026432,3]
[367147856,1750671053292,-1054.61,0.00026432,3]
[367147858,1750671053303,-1245.98,0.00026432,3]
[367147860,1750671053313,-746.89,0.00026432,3]
[367147862,1750671053322,-1188.95,0.00026432,3]
[367147864,1750671053332,-1264.16,0.00026432,3]
[367147866,1750671053341,-991.38,0.00026432,3]
[367147868,1750671053351,-1256.51,0.00026432,3]
[367147870,1750671053360,-1099.57,0.00026432,3]
[367147872,1750671053370,-2170.06,0.00026432,3]
[367147874,1750671053379,-1192.33,0.00026432,3]
[367147876,1750671053389,-490.0,0.00026432,3]
[367147878,1750671053399,-544.36,0.00026432,3]
[367147880,1750671053408,-1114.47,0.00026432,3]
[367147882,1750671053418,-1291.74,0.00026432,3]
[367147884,1750671053427,-490.0,0.00026432,3]
[367147886,1750671053437,-559.15,0.00026432,3]
[367147888,1750671053447,-633.75,0.00026432,3]
[367147890,1750671053457,-1018.46,0.00026432,3]
[367147892,1750671053466,-490.0,0.00026432,3]
[367147894,1750671053476,-1499.34,0.00026432,3]
[367147896,1750671053485,-971.68,0.00026432,3]
[367147898,1750671053496,-744.75,0.00026432,3]
[367147900,1750671053505,-1123.73,0.00026432,3]
[367147902,1750671053515,-1493.13,0.00026432,3]
[367147904,1750671053525,-490.0,0.00026432,3]
[367147906,1750671053536,-806.25,0.00026432,3]
[367147908,1750671053551,-893.96,0.00026433,3]
[367147910,1750671053562,-1279.9,0.00026433,3]
[367147912,1750671053573,-1111.65,0.00026433,3]
[367147914,1750671053583,-852.71,0.00026433,3]
[367147916,1750671053594,-490.0,0.00026433,3]
[367147918,1750671053604,-1214.37,0.00026433,3]
[367147920,1750671053614,-490.0,0.00026433,3]
[367147922,1750671053624,-601.1,0.00026433,3]
[367147924,1750671053634,-1230.36,0.00026433,3]
[367147926,1750671053644,-1535.19,0.00026433,3]
[367147928,1750671053654,-1124.34,0.00026433,3]
[367147930,1750671053664,-987.86,0.00026433,3]
[367147932,1750671053675,-1909.97,0.00026433,3]
[367147934,1750671053685,-1871.68,0.00026433,3]
[367147936,1750671053696,-1679.08,0.00026433,3]
[367147939,1750671053705,-3684.48,0.00026433,3]
[367147941,1750671053715,-1110.3,0.00026433,3]
[367147943,1750671053725,-6135.07,0.00026433,3]
[367147945,1750671053734,-1292.11,0.00026433,3]
[367147947,1750671053744,-4348.18,0.00026433,3]
[367147949,1750671053754,-1305.05,0.00026433,3]
[367147951,1750671053764,-4930.46,0.00026433,3]
[367147953,1750671053773,-5411.6,0.00026433,3]
[367147955,1750671053783,-490.0,0.00026433,3]
[367147957,1750671053796,-3052.68,0.00026433,3]
[367147959,1750671053806,-498.89,0.00026433,3]
[367147961,1750671053816,-1243.35,0.00026433,3]
[367147963,1750671053825,-784.78,0.00026433,3]
[367147965,1750671053835,-1542.83,0.00026433,3]
[367147967,1750671053844,-1417.76,0.00026433,3]
[367147969,1750671053854,-1250.85,0.00026433,3]
[367147971,1750671053864,-3787.45,0.00026433,3]
[367147973,1750671053874,-522.67,0.00026433,3]
[367147975,1750671053884,-4663.0,0.00026433,3]
[367147977,1750671053894,-808.5,0.00026433,3]
[367147979,1750671053904,-725.43,0.00026433,3]
[367147981,1750671053914,-490.0,0.00026433,3]
[367147983,1750671053923,-1024.92,0.00026433,3]
[367147986,1750671053933,-1023.63,0.00026433,3]
[367147988,1750671053943,-1229.41,0.00026433,3]
[367147990,1750671053952,-1101.11,0.00026433,3]
[367147992,1750671053962,-162.380719,0.00026486,2]
[367147994,1750671053972,-152.889857,0.0002649,7]
[367147996,1750671053982,-151.0,0.0002649,7]
[367147998,1750671053991,-151.0,0.0002649,7]
[367148000,1750671054001,-151.0,0.0002649,7]
[367148002,1750671054011,-151.0,0.0002649,7]
[367148004,1750671054021,-151.0,0.0002649,7]
[367148006,1750671054032,-151.390414,0.0002649,7]
[367148008,1750671054042,-151.0,0.0002649,7]
[367148010,1750671054051,-151.0,0.0002649,7]
[367148012,1750671054061,-3287.893115,0.0002649,7]
[367148014,1750671054071,-1093.58,0.00026493,3]
[367148016,1750671054081,-490.0,0.00026493,3]
[367148018,1750671054091,-1145.93,0.00026493,3]
[367148020,1750671054102,-592.4,0.00026493,3]
[367148022,1750671054111,-791.05,0.00026493,3]
[367148024,1750671054121,-2299.43,0.00026493,3]
[367148026,1750671054130,-151.0,0.00026493,7]
[367148028,1750671054140,-876.96,0.00026493,3]
[367148030,1750671054151,-1136.69,0.00026493,3]
[367148032,1750671054160,-1124.98,0.00026493,3]
[367148034,1750671054170,-503.54,0.00026493,3]
[367148036,1750671054179,-1139.62,0.00026493,3]
[367148038,1750671054189,-1299.08,0.00026493,3]
[367148040,1750671054199,-23598.15,0.00026493,3]
[367148042,1750671054209,-3594.64,0.00026493,3]
[367148044,1750671054218,-1672.9,0.00026493,3]
[367148046,1750671054228,-151.0,0.00026493,7]
[367148049,1750671054238,-2305.21,0.00026493,3]
[367148051,1750671054248,-1263.38,0.00026493,3]
[367148053,1750671054257,-2485.33,0.00026493,3]
[367148055,1750671054267,-5354.1,0.00026493,3]
[367148057,1750671054277,-981.37,0.00026493,3]
[367148058,1750671054286,-610.021123,0.00026493,7]
[367148059,1750671054298,-610.021123,0.00026493,7]
[367148060,1750671054308,-5563.0,0.000265,5]
[367148061,1750671054318,-1403.64619,0.0002652,2]
[367148062,1750671054328,-238.52912342,0.00026555,15]
[367148064,1750671054338,-1403.6462,0.0002657,2]
[367148066,1750671054348,-200.0,0.00026575,2]
[367148068,1750671054358,-718.02,0.00026575,3]
[367148070,1750671054367,-1073.95,0.00026575,3]
[367148073,1750671054377,-150.99,0.00026591,2]
[367148075,1750671054388,-150.99,0.00026591,2]
[367148077,1750671054398,-9999.99,0.00026591,2]
[367148079,1750671054408,-773.31,0.00026591,2]
[367148081,1750671054418,-9999.99,0.00026591,2]
[367148083,1750671054428,-999.99,0.00026591,2]
[367148085,1750671054437,-9999.99,0.00026591,2]
[367148087,1750671054447,-458.87,0.00026591,20]
[367148089,1750671054457,-1997.0,0.00026595,7]
[367148091,1750671054467,-490.0,0.00026599,3]
[367148093,1750671054478,-749.74,0.00026599,3]
[367148096,1750671054488,-707.69,0.00026599,3]
[367148097,1750671054498,-490.0,0.00026599,3]
[367148100,1750671054508,-438.58516864,0.00026599,3]
[367148102,1750671054517,-490.0,0.00026599,3]
[367148104,1750671054528,-490.0,0.00026599,3]
[367148106,1750671054538,-490.0,0.00026599,3]
[367148108,1750671054548,-490.0,0.00026599,3]
[367148110,1750671054559,-490.0,0.00026599,3]
[367148112,1750671054569,-490.0,0.00026599,3]
[367148114,1750671054579,-741.32,0.00026599,3]
[367148116,1750671054590,-746.08,0.00026599,3]
[367148118,1750671054599,-490.0,0.00026599,3]
[367148120,1750671054609,-490.0,0.00026599,3]
[367148122,1750671054619,-490.0,0.00026599,3]
[367148124,1750671054629,-808.42,0.00026599,3]
[367148126,1750671054639,-490.0,0.00026599,3]
[367148156,1750671054944,-490.0,0.00026599,3]
[367148157,1750671054965,-817.71,0.00026599,3]
[367148158,1750671054975,-490.0,0.00026599,3]
[367148159,1750671054984,-490.0,0.00026599,3]
[367148160,1750671054994,-546.62663054,0.00026599,3]
[367148161,1750671055003,-811.98,0.00026599,3]
[367148162,1750671055012,-500.0,0.00026599,2]
[367148163,1750671055021,-490.0,0.00026599,3]
[367148164,1750671055031,-490.0,0.00026599,3]
[367148165,1750671055043,-933.08,0.00026599,3]
[367148166,1750671055052,-490.0,0.00026599,3]
[367148167,1750671055062,-611.52,0.00026599,3]
[367148168,1750671055072,-490.0,0.00026599,3]
[367148169,1750671055082,-3349.16,0.00026599,3]
[367148170,1750671055092,-490.0,0.00026599,3]
[367148171,1750671055101,-490.0,0.00026599,3]
[367148172,1750671055111,-490.0,0.00026599,3]
[367148173,1750671055121,-490.0,0.00026599,3]
[367148174,1750671055131,-490.0,0.00026599,3]
[367148175,1750671055141,-535.97,0.00026599,3]
[367148176,1750671055151,-490.0,0.00026599,3]
[367148177,1750671055161,-490.0,0.00026599,3]
[367148178,1750671055172,-657.71,0.00026599,3]
[367148179,1750671055182,-525.09734163,0.00026599,3]
[367148180,1750671055195,-2452.17,0.00026599,3]
[367148181,1750671055205,-579.15,0.00026599,3]
[367148182,1750671055215,-490.0,0.00026599,3]
[367148184,1750671055226,-4993.59,0.00026599,3]
[367148186,1750671055237,-311.57258097,0.00026599,3]
[367148188,1750671055247,-503.06222229,0.00026599,3]
[367148190,1750671055257,-533.77,0.00026599,3]
[367148192,1750671055266,-490.0,0.00026599,3]
[367148194,1750671055276,-2842.79,0.00026599,3]
[367148196,1750671055287,-490.0,0.00026599,3]
[367148198,1750671055304,-490.0,0.00026599,3]
[367148200,1750671055314,-1813.8,0.00026599,3]
[367148202,1750671055323,-517.98,0.00026599,3]
[367148204,1750671055334,-508.4274053,0.00026599,3]
[367148206,1750671055343,-678.07,0.00026599,3]
[367148209,1750671055353,-490.0,0.00026599,3]
[367148211,1750671055363,-3639.84,0.00026599,3]
[367148213,1750671055372,-724.01,0.00026599,3]
[367148215,1750671055382,-1610.8,0.00026599,3]
[367148217,1750671055391,-490.0,0.00026599,3]
[367148219,1750671055401,-490.0,0.00026599,3]
[367148220,1750671055410,-490.0,0.00026599,3]
[367148223,1750671055420,-1341.09,0.00026599,3]
[367148225,1750671055429,-1429.6,0.00026599,3]
[367148227,1750671055439,-490.0,0.00026599,3]
[367148229,1750671055448,-295.74768614,0.00026599,3]
[367148231,1750671055458,-490.0,0.00026599,3]
[367148233,1750671055467,-991.69,0.00026599,3]
[367148235,1750671055476,-490.0,0.00026599,3]
[367148237,1750671055486,-490.0,0.00026599,3]
[367148239,1750671055495,-894.5,0.00026599,3]
[367148242,1750671055513,-1828.1,0.00026599,3]
[367148244,1750671055525,-1543.07,0.00026599,3]
[367148246,1750671055535,-490.0,0.00026599,3]
[367148248,1750671055549,-490.0,0.00026599,3]
[367148250,1750671055559,-413.07940181,0.00026599,3]
[367148253,1750671055569,-1119.58,0.00026599,3]
[367148255,1750671055579,-490.0,0.00026599,3]
[367148257,1750671055589,-490.0,0.00026599,3]
[367148259,1750671055599,-614.43,0.00026599,3]
[367148261,1750671055609,-520.38,0.00026599,3]
[367148263,1750671055619,-5605.18,0.00026599,3]
[367148265,1750671055628,-490.0,0.00026599,3]
[367148267,1750671055640,-669.35,0.00026599,3]
[367148269,1750671055650,-769.56,0.00026599,3]
[367148271,1750671055660,-6971.06,0.00026599,3]
[367148273,1750671055670,-490.0,0.00026599,3]
[367148275,1750671055680,-675.45,0.00026599,3]
[367148278,1750671055690,-361.19345972,0.00026599,3]
[367148280,1750671055700,-490.0,0.00026599,3]
[367148282,1750671055710,-2713.01,0.00026599,3]
[367148284,1750671055721,-361.29874041,0.00026599,3]
[367148286,1750671055731,-827.98,0.00026606,3]
[367148288,1750671055741,-786.98329073,0.00026606,2]
[367148290,1750671055751,-585.75,0.00026606,3]
[367148292,1750671055762,-176.85024721,0.00026606,5]
[367148294,1750671055773,-1216.51,0.00026606,3]
[367148296,1750671055783,-490.0,0.00026606,3]
[367148298,1750671055795,-558.63,0.00026606,3]
[367148300,1750671055804,-802.27,0.00026606,2]
[367148302,1750671055814,-490.0,0.00026606,3]
[367148304,1750671055823,-490.0,0.00026607,3]
[367148306,1750671055833,-490.0,0.00026607,3]
[367148308,1750671055844,-490.93,0.00026607,3]
[367148310,1750671055855,-707.79,0.00026607,3]
[367148312,1750671055865,-1604.37,0.00026607,3]
[367148315,1750671055875,-1142.47,0.00026607,3]
[367148317,1750671055887,-258.68327713,0.00026607,3]
[367148319,1750671055896,-1126.87,0.00026607,3]
[367148321,1750671055907,-557.12,0.00026607,3]
[367148323,1750671055917,-1298.56,0.00026607,3]
[367148325,1750671055927,-547.26,0.00026607,3]
[367148327,1750671055936,-509.46,0.00026607,3]
[367148329,1750671055946,-490.0,0.00026607,3]
[367148331,1750671055955,-1345.74,0.00026607,3]
[367148333,1750671055965,-1643.04,0.00026607,3]
[367148335,1750671055975,-490.0,0.00026607,3]
[367148337,1750671055984,-830.36,0.00026607,3]
[367148339,1750671055994,-525.41,0.00026607,3]
[367148341,1750671056003,-1068.15,0.00026607,3]
[367148343,1750671056012,-690.72,0.00026607,3]
[367148345,1750671056022,-1225.6,0.00026607,3]
[367148347,1750671056031,-1239.87,0.00026607,3]
[367148349,1750671056042,-1334.29,0.00026607,3]
[367148351,1750671056052,-1174.6,0.00026607,3]
[367148353,1750671056062,-2305.072983,0.00026607,3]
[367148354,1750671056071,-1213.260132,0.00026607,3]
[367148355,1750671056082,-1035.95,0.00026607,3]
[367148356,1750671056091,-490.0,0.00026607,3]
[367148357,1750671056101,-490.0,0.00026607,3]
[367148358,1750671056111,-1440.75,0.00026607,3]
[367148359,1750671056122,-2027.51,0.00026607,3]
[367148360,1750671056131,-794.33,0.00026607,3]
[367148361,1750671056141,-1437.79,0.00026607,3]
[367148362,1750671056150,-4833.380964,0.00026607,3]
[367148363,1750671056160,-614.15,0.00026607,3]
[367148364,1750671056171,-1340.2,0.00026607,3]
[367148365,1750671056182,-490.0,0.00026607,3]
[367148366,1750671056196,-490.0,0.00026607,3]
[367148367,1750671056210,-981.2,0.00026607,3]
[367148368,1750671056221,-601.64,0.00026607,3]
[367148369,1750671056230,-747.47,0.00026607,3]
[367148370,1750671056240,-2568.16,0.00026607,3]
[367148371,1750671056249,-1437.45,0.00026607,3]
[367148372,1750671056260,-1019.22,0.00026607,3]
[367148373,1750671056270,-1567.19,0.00026607,3]
[367148374,1750671056280,-1254.72,0.00026607,3]
[367148375,1750671056291,-1423.33,0.00026607,3]
[367148376,1750671056301,-10874.26,0.00026607,3]
[367148377,1750671056314,-1840.02,0.00026607,3]
[367148378,1750671056324,-613.75,0.00026607,3]
[367148379,1750671056334,-567.06592496,0.00026607,3]
[367148380,1750671056344,-2981.49,0.00026607,3]
[367148381,1750671056354,-1421.03,0.00026607,3]
[367148382,1750671056365,-490.0,0.00026607,3]
[367148383,1750671056374,-1615.12,0.00026607,3]
[367148384,1750671056385,-2199.74,0.00026607,3]
[367148385,1750671056395,-1367.19,0.00026607,3]
[367148386,1750671056405,-490.0,0.00026607,3]
[367148387,1750671056415,-873.9,0.00026607,3]
[367148388,1750671056426,-1277.01,0.00026607,3]
[367148389,1750671056435,-736.22,0.00026607,3]
[367148390,1750671056445,-1232.55,0.00026607,3]
[367148391,1750671056455,-2264.65,0.00026607,3]
[367148392,1750671056465,-798.31,0.00026607,3]
[367148393,1750671056475,-1460.83,0.00026607,3]
[367148394,1750671056484,-1230.43,0.00026607,3]
[367148395,1750671056493,-3458.74,0.00026607,3]
[367148396,1750671056503,-3322.15,0.00026607,3]
[367148397,1750671056513,-1258.34,0.00026607,3]
[367148398,1750671056522,-542.15,0.00026607,3]
[367148399,1750671056531,-1319.46,0.00026607,3]